Cogmind - Beta 16 *** ADVENTURER MODE // 2025.11.16 @ 11:27:18 Player: oshi0ne1 Result: Destroyed by Y-45 Defender with Beam Rifle Performance ------------- Evolutions (2) 1000 Regions Visited (3) 600 Robots Destroyed (12) 60 Value Destroyed (421) 421 Prototype IDs (12) 240 Alien Tech Used (0) 0 Bonus (0) 0 TOTAL SCORE: 2321 Bonus ------- None Cogmind --------- Core Integrity 0/550 Matter 290/300 Energy 87/100 System Corruption 2% Temperature Cool (9) Movement Treading (145) Location -8/Materials Parts ------- > --- POWER (2) -------- (None) > --- PROPULSION (2) --- Advanced Treads Advanced Treads > --- UTILITY (4) ------ Improved Signal Interpreter Hardened Medium Armor Plating System Shield > --- WEAPON (3) ------- Field Laser Heavy Assault Rifle EMP Blaster > --- INVENTORY (5) ---- Aluminum Leg Subdweller Beam Cannon Peak State ------------ > --- POWER ------------ Ion Engine > --- PROPULSION ------- Aluminum Leg Aluminum Leg Aluminum Leg > --- UTILITY ---------- Small Storage Unit Subdweller Optics Signal Interpreter Propulsion Shielding Tower Shield > --- WEAPON ----------- Subdweller Beam Cannon > --- INVENTORY -------- Spiked Treads Advanced Treads Advanced Treads Advanced Treads Advanced Treads Hardened Medium Armor Plating System Shield [Rating: 33] Favorites ----------- Power Ion Engine Engine Ion Engine Power Core Light Nuclear Core Propulsion Aluminum Leg Treads Advanced Treads Leg Aluminum Leg Wheel Subdweller Monowheel Utility Small Storage Unit Device Subdweller Optics Storage Small Storage Unit Processor Signal Interpreter Hackware System Shield Protection Propulsion Shielding Weapon Subdweller Beam Cannon Energy Gun Field Laser Energy Cannon Subdweller Beam Cannon Ballistic Gun Light Assault Rifle Launcher EMP Blaster Build | -11 -10 -10 -8 ------- Run | Yrd Mat Sub Mat Slots Evolved 4 | . . . 4 Power 1 | . . . 1 Propulsion . | . . . . Utility 2 | . . . 2 Weapon 1 | . . . 1 Parts Attached 30 | 6 2 7 15 Power 3 | 1 . . 2 Engine 2 | 1 . . 1 Core 1 | . . . 1 Reactor . | . . . . Propulsion 12 | 2 . 5 5 Treads 4 | . . . 4 Leg 3 | . . 2 1 Wheel 5 | 2 . 3 . Hover . | . . . . Flight . | . . . . Utility 8 | 1 2 . 5 Device 1 | . . . 1 Storage 1 | 1 . . . Processor 2 | . 1 . 1 Hackware 1 | . . . 1 Protection 3 | . 1 . 2 Artifact . | . . . . Weapon 7 | 2 . 2 3 Energy Gun 1 | . . . 1 Energy Cannon 2 | . . 2 . Ballistic Gun 3 | 2 . . 1 Ballistic Cannon . | . . . . Launcher 1 | . . . 1 Special Weapon . | . . . . Impact Weapon . | . . . . Slashing Weapon . | . . . . Piercing Weapon . | . . . . Special Melee Weapon . | . . . . Unidentified Prototypes . | . . . . Parts Lost 14 | . . 5 9 Power 3 | . . 1 2 Propulsion 6 | . . 2 4 Utility 3 | . . . 3 Weapon 2 | . . 2 . Highest Loss Streak 5 | . . 3 5 To Critical Strikes . | . . . . Average Backups 5 | 1 3 5 5 Power . | . 1 1 . Propulsion 2 | 1 2 2 2 Utility 1 | . . 1 1 Weapon . | . . . . Tool/Special . | . . . . Unused Backups 2 | . . . 2 Power . | . . . . Propulsion 2 | . . . 2 Utility . | . . . . Weapon . | . . . . Tool/Special . | . . . . Average Slot Usage (%) 74 | . 98 80 47 Engine 2 | . 14 1 3 Treads 1 | . . . 6 Leg 9 | . . 10 9 Wheel 14 | . 28 17 . Storage 11 | . 14 14 4 Processor 10 | . 1 14 5 Protection 2 | . 10 . 7 Energy Cannon 11 | . . 16 2 Ballistic Gun 7 | . 28 6 1 Peak Build Rating 33 | 6 7 10 33 Average Rating 10 | 4 6 8 21 On Entrance 5 | . 6 7 8 Avg Prop Armor Cover (%) 7 | . . 7 . Naked Turns . | . . . . Heaviest Build 59 | 12 13 21 59 Greatest Support 44 | 26 26 40 44 Greatest Overweight (x) 1 | . . 1 1 Average Overweight (x) . | . . . . Largest Inventory Capacity 8 | 8 8 8 8 Average Capacity 7 | 7 8 8 7 Most Carried 8 | 5 5 7 8 Average Carried 5 | 2 3 5 5 Final Capacity 8 | 8 8 8 5 Final Carried 7 | 3 5 7 2 Class Distribution -------------------- 69% | Mutant 26% | Scavenger-Mutant 3% | Hacker-Mutant Dominant Class ---------------- Mutant | -10/Materials Mutant | -10/Subcaves Mutant | -8/Materials Resources | -11 -10 -10 -8 ----------- Run | Yrd Mat Sub Mat Matter Collected 457 | 196 94 84 83 Remotely . | . . . . Salvage Created 407 | . 84 158 165 Parts 32 | . 7 15 10 Haulers Intercepted . | . . . . Recyclers Shooed . | . . . . Parts Field Recycled . | . . . . Retrieved Matter . | . . . . Parts Self-Destructed . | . . . . Prevented . | . . . . Parts Restored . | . . . . Kills | -11 -10 -10 -8 ------- Run | Yrd Mat Sub Mat Combat Hostiles Destroyed 12 | . 4 4 4 Melee 1 | . . . 1 Guns 8 | . 4 2 2 Cannons 2 | . . 2 . Classes Destroyed 4 | . 2 1 1 Swarmer 3 | . 3 . . Grunt 3 | . 1 . 2 Sentry 2 | . . . 2 Subdweller 4 | . . 4 . Best Kill Streak 4 | . 4 2 2 Combat Bots Only 4 | . 4 2 2 Max Kills in Single Turn 1 | . 1 1 1 Gunslinging . | . . . . Exploded . | . . . . Melee 1 | . . . 1 Uniques/NPCs Destroyed . | . . . . Combat | -11 -10 -10 -8 -------- Run | Yrd Mat Sub Mat Hostile Shots Fired 223 | . 12 30 181 Missed 55 | . 3 7 45 Hits 168 | . 9 23 136 Projectile 168 | . 9 23 136 Critical Strikes 5 | . . . 5 Actively Blocked 1 | . . . 1 Damage Taken 2332 | . 60 457 1815 Core 712 | . 14 142 556 Absorbed by Shields . | . . . . Redirected to Shielding 22 | . 5 . 17 Ignored by Resistances 627 | . 20 122 485 Core Remaining (%) 68 | 100 . 37 . Volleys Fired 51 | . 10 29 12 Largest 2 | . 2 2 2 Hottest 160 | . 40 160 86 Shots Fired 80 | . 20 47 13 Gun 57 | . 20 29 8 Cannon 23 | . . 18 5 Launcher . | . . . . Special . | . . . . Kinetic 51 | . 20 29 2 Thermal 29 | . . 18 11 Explosive . | . . . . Electromagnetic . | . . . . Robot Hit Streak 17 | . 12 17 11 Robot Miss Streak 2 | . 2 1 1 Penetration Max . | . . . . Secondary Targets 2 | . 1 1 . Max Gunslinging Chain 1 | . 1 1 . Shots Hit Robots 54 | . 16 28 10 Core Hits 29 | . 7 10 12 Critical Kills 1 | . . . 1 Critical Parts Destroyed . | . . . . Critical Strikes 1 | . . . 1 Meltdown 1 | . . . 1 Melee Attacks . | . . . . Impact . | . . . . Slashing . | . . . . Piercing . | . . . . Sneak Attacks . | . . . . Combat Hostiles . | . . . . Follow-up Attacks . | . . . . Damage Inflicted 744 | . 133 284 327 Guns 440 | . 133 194 113 Cannons 169 | . . 90 79 Explosions . | . . . . Melee . | . . . . Ramming 135 | . . . 135 Kinetic 339 | . 133 194 12 Thermal 270 | . . 90 180 Explosive . | . . . . Electromagnetic . | . . . . Impact . | . . . . Slashing . | . . . . Piercing . | . . . . Highest Corruption 2 | . . . 2 Average Corruption 2 | . . . 2 Corruption Purged . | . . . . Corruption Blocked . | . . . . Effects 1 | . . . 1 Message Errors 1 | . . . 1 Overload Shots . | . . . . Overflow Damage . | . . . . Projectiles . | . . . . Explosions . | . . . . Melee . | . . . . Knockbacks 2 | . . . 2 Impact 2 | . . . 2 Kinetic . | . . . . Secondary . | . . . . Self-Inflicted Damage 20 | . . . 20 Shots . | . . . . Rammed 30 | . . . 30 Targets Rammed 61 | . . . 61 Kicked 31 | . . . 31 Crushed . | . . . . Highest Temperature 73 | . 6 24 73 Average Temperature 24 | . 6 15 29 Received Heat Transfer 1209 | . 18 183 1008 Siege Activations . | . . . . Martial Activations . | . . . . Shielding Activations . | . . . . Robots Disrupted . | . . . . Combat Hostiles . | . . . . Robots Corrupted . | . . . . Combat Hostiles . | . . . . Parts Fried . | . . . . Impact Corruptions . | . . . . Robots Melted 1 | . . . 1 Combat Hostiles 1 | . . . 1 Parts Melted 2 | . . 1 1 Heat Transferred 444 | . . 111 333 Parts Sabotaged . | . . . . Parts Stolen . | . . . . Parts Stripped . | . . . . Power Chain Reactions . | . . . . Alert | -11 -10 -10 -8 ------- Run | Yrd Mat Sub Mat Maximum Alert Level . | . . . . Low Security (%) 100 | 100 100 . 100 Level 1 . | . . . . Level 2 . | . . . . Level 3 . | . . . . Level 4 . | . . . . Level 5 . | . . . . High Security . | . . . . Max Security . | . . . . Peak Influence 95 | . 95 . 60 Initial . | . . . . Average 18 | . 47 . 9 Influence Increases 225 | . 105 . 120 Destroy 0b10 Robot/C 160 | . 80 . 80 Destroy Leader 40 | . 10 . 30 Disable Machine 9 | . . . 9 Destroy Structure 1 | . . . 1 Lose Combat Pursuer 15 | . 15 . . Influence Decreases 195 | . 50 55 90 Entered New Map 31 | . . 31 . Time Decay 154 | . 50 24 80 Lost Part 10 | . . . 10 Squads Dispatched . | . . . . Investigation . | . . . . Extermination . | . . . . Reinforcement . | . . . . Assault . | . . . . Garrison . | . . . . Intercept . | . . . . Searches Triggered . | . . . . Construction Impeded . | . . . . Haulers Reinforced . | . . . . Active Scanning Responses . | . . . . Cargo Convoy Interrupts . | . . . . Stealth | -11 -10 -10 -8 --------- Run | Yrd Mat Sub Mat Distress Signals . | . . . . Communications Jammed . | . . . . Distress Signals . | . . . . Times Spotted 16 | . 6 4 6 Peak Tracking Total 4 | . 3 2 4 Tactical Retreats 1 | . 1 . . Traps | -11 -10 -10 -8 ------- Run | Yrd Mat Sub Mat Traps Triggered . | . . . . Indirectly . | . . . . Trap Hack Attempts . | . . . . Triggered . | . . . . Disarmed . | . . . . Reprogrammed . | . . . . Reused . | . . . . Traps Extracted . | . . . . Installed . | . . . . Triggered . | . . . . Machines | -11 -10 -10 -8 ---------- Run | Yrd Mat Sub Mat Machines Disabled 2 | . . 1 1 Max in Single Turn 1 | . . 1 1 Machines Repaired . | . . . . Machines Dismantled . | . . . . Machines Sabotaged . | . . . . Overloaded Fab Kills . | . . . . Hacking | -11 -10 -10 -8 --------- Run | Yrd Mat Sub Mat Machines Accessed 2 | . 1 1 . Terminals 1 | . 1 . . Fabricators . | . . . . Repair Stations . | . . . . Recycling Units . | . . . . Scanalyzers . | . . . . Garrison Access . | . . . . Total Hacks 10 | . 1 9 . Successful 10 | . 1 9 . Failed . | . . . . Catastrophic . | . . . . Database Lockouts . | . . . . Manual 1 | . . 1 . Terminals 1 | . 1 . . Fabricators . | . . . . Repair Stations . | . . . . Recycling Units . | . . . . Scanalyzers . | . . . . Garrison Access . | . . . . Terminal Hacks 10 | . 1 9 . Record 8 | . . 8 . Alert Level 1 | . 1 . . Proto ID Catalog 1 | . . 1 . Fabricator Hacks . | . . . . Repair Station Hacks . | . . . . Recycling Unit Hacks . | . . . . Scanalyzer . | . . . . Garrison Access Hacks . | . . . . Unauthorized Hacks . | . . . . Terminals . | . . . . Fabricators . | . . . . Repair Stations . | . . . . Recycling Units . | . . . . Scanalyzers . | . . . . Garrison Access . | . . . . Data Cores Recovered . | . . . . Used . | . . . . Hacking Detections . | . . . . Full Trace Events . | . . . . Feedback Events . | . . . . Feedback Blocked . | . . . . Robot Schematics Acquired . | . . . . Robots Built . | . . . . Authchips . | . . . . Time . | . . . . Total Robot Build Rating . | . . . . Part Schematics Acquired . | . . . . Parts Built . | . . . . Authchips . | . . . . Time . | . . . . Total Part Build Rating . | . . . . Part Studies Acquired . | . . . . Parts Repaired . | . . . . Time . | . . . . Parts Recycled . | . . . . Recycled Matter . | . . . . Retrieved Matter . | . . . . Retrieved Components . | . . . . Parts Scanalyzed . | . . . . Part Schematics Acquired . | . . . . Parts Damaged . | . . . . Bothacking | -11 -10 -10 -8 ------------ Run | Yrd Mat Sub Mat Used RIF Installer . | . . . . Robots Hacked . | . . . . Non-combat . | . . . . Combat . | . . . . Robot Hacks Applied . | . . . . Relay Couplers Released . | . . . . Fabnet Peak Effective % . | . . . . Robots Rewired . | . . . . Allies Hacked . | . . . . Hacks Repelled . | . . . . Allies | -11 -10 -10 -8 -------- Run | Yrd Mat Sub Mat Total Allies . | . . . . Largest Group . | . . . . Highest-Rated Group . | . . . . Highest-Rated Ally . | . . . . Total Orders . | . . . . Ally Attacks . | . . . . Total Damage . | . . . . Kills . | . . . . Allies Corrupted . | . . . . Allies Melted . | . . . . Intel | -11 -10 -10 -8 ------- Run | Yrd Mat Sub Mat Active Infowar (turns) 183 | . . . 183 Optics 183 | . . . 183 Robot Analysis Total . | . . . . Derelict Logs Recovered 2 | . . 2 . Drone Launches . | . . . . Drone Recoveries . | . . . . Exploration | -11 -10 -10 -8 ------------- Run | Yrd Mat Sub Mat Turns Passed 1691 | 62 146 1114 369 Spaces Moved 1194 | 54 122 912 106 Core 6 | 1 . . 5 Treads 43 | . . . 43 Legs 382 | . . 324 58 Wheels 763 | 53 122 588 . Hover . | . . . . Flight . | . . . . Fastest Speed 50 | 50 90 90 100 Average Speed 112 | 88 90 111 165 Slowest Speed 190 | 90 90 120 190 Overloaded Moves . | . . . . Propulsion Burnouts . | . . . . Robots Hopped . | . . . . Potential Cave-ins . | . . . . Cave-ins Triggered . | . . . . Exploration Rate (%) 20 | 4 20 48 10 Regions Visited 3 Branch Regions 1 Pre-discovered Areas 1 | . . 1 . Known Exits Taken 2 | . 1 1 . Unknown Exits Taken 1 | 1 . . . Scrap Searched . | . . . . Spaces Dug . | . . . . Terrain Destroyed 1 | . . . 1 Melee . | . . . . Projectile 1 | . . . 1 AOE . | . . . . Terrain Rammed . | . . . . Walls Destroyed . | . . . . Machines Disabled . | . . . . Actions | -11 -10 -10 -8 --------- Run | Yrd Mat Sub Mat Total 1443 | 66 141 970 266 Wait 80 | . 6 13 61 Move 1191 | 53 121 911 106 Hop . | . . . . Pick Up 21 | 6 2 5 8 Fast Attach 12 | 4 1 3 4 Attach 17 | 2 . 3 12 Detach 1 | . . . 1 Swap 2 | . 1 1 . Drop 7 | 1 . 5 1 Fire 51 | . 10 29 12 Melee . | . . . . Ram 19 | . . . 19 Kick 31 | . . . 31 Crush 11 | . . . 11 Escape Stasis . | . . . . Rewire . | . . . . Trap . | . . . . Miscellaneous . | . . . . Route ------- -11/Scrapyard -10/Materials -10/Subcaves -8/Materials (discovered 1 exit: Fac) History --------- Turn | Location | Event 21 | -11/Scrapyard | Discovered new exit (range 15) 63 | -11/Scrapyard | Entered Materials 155 | -10/Materials | Discovered new exit (range 7) 207 | -10/Materials | Identified exit to Subcaves 209 | -10/Materials | Entered Subcaves 218 | -10/Subcaves | Discovered new exit (range 13) 229 | -10/Subcaves | Identified exit to Materials 318 | -10/Subcaves | Build established: Mutant 426 | -10/Subcaves | Learned location of 1 exit from Materials 458 | -10/Subcaves | Core integrity fell below 50% 495 | -10/Subcaves | Lost 3 parts (1n2w) 507 | -10/Subcaves | A swath of the cavern ceiling suddenly collapsed 625 | -10/Subcaves | A swath of the cavern ceiling suddenly collapsed 698 | -10/Subcaves | Learned location of Storage (-9) 773 | -10/Subcaves | Build established: Scavenger-Mutant 1011 | -10/Subcaves | Shifting Twisted Machinery released Spk. Treads 1176 | -10/Subcaves | Visited 4L-MR0's lab 1204 | -10/Subcaves | Found Tower Shield 1207 | -10/Subcaves | Build established: Mutant 1323 | -10/Subcaves | Entered Materials 1323 | -8/Materials | Evolved 4 slots: Power x1, Utility x2, Weapon x1 1324 | -8/Materials | Identified exit to Factory 1325 | -8/Materials | Attached Tower Shield, gained temporary slots: Power, Propulsion x2, Utility x2, Weapon x2 1567 | -8/Materials | Lost 4 parts (1p2n1u) 1579 | -8/Materials | Core integrity fell below 50% 1589 | -8/Materials | Core integrity fell below 20% 1631 | -8/Materials | Lost 5 parts (1p2n2u) 1692 | -8/Materials | Destroyed by Y-45 Defender with Beam Rifle Last Messages --------------- K-01 Serf collects debris. Y-45 Defender destroyed. Acquired 26 matter. K-01 Serf collects debris. Acquired 10 matter. K-01 Serf collects debris. Acquired 10 matter. K-01 Serf collects debris. R-06 Scavenger collects Lgt. Treads. K-01 Serf collects debris. R-06 Scavenger collects Lgt. Armor Plating. K-01 Serf collects debris. R-06 Scavenger collects Lgt. Treads. K-01 Serf collects debris. EG